[Event "Championnat du monde jeunes U10F"]
[Date "2024.11.26"]
[White "Artemenko, Isabella"]
[Black "Poliak, Margarita"]
[WhiteElo "1637"]
[BlackElo "1514"]
[Round "11.20"]
[Result "0-1"]
[TimeControl "5400+30"]

1. e4 {[%clk 1:30:59]} 1... c5 {[%clk 1:30:53]} 2. Nc3 {[%clk 1:31:25]} 2... d6
{[%clk 1:31:14]} 3. g3 {[%clk 1:31:47]} 3... Nc6 {[%clk 1:31:34]} 4. d3 {[%clk
1:32:05]} 4... g6 {[%clk 1:31:42]} 5. Bg2 Bg7 {[%clk 1:32:03]} 6. f4 {[%clk
1:32:51]} 6... e6 {[%clk 1:32:24]} 7. Nf3 {[%clk 1:33:09]} 7... Nge7 {[%clk
1:32:42]} 8. O-O {[%clk 1:33:29]} 8... O-O {[%clk 1:32:38]} 9. Be3 {[%clk
1:33:38]} 9... Nd4 {[%clk 1:31:58]} 10. e5 {[%clk 1:33:49]} 10... Nef5 {[%clk
1:30:14]} 11. Bf2 {[%clk 1:34:12]} 11... Nxf3+ {[%clk 1:23:41]} 12. Qxf3 {[%clk
1:34:29]} 12... Nd4 {[%clk 1:21:19]} 13. Qd1 {[%clk 1:34:54]} 13... dxe5 {[%clk
1:20:59]} 14. fxe5 {[%clk 1:35:18]} 14... Bxe5 {[%clk 1:19:16]} 15. Ne4 {[%clk
1:35:37]} 15... Qc7 {[%clk 1:03:25]} 16. c3 {[%clk 1:36:00]} 16... Nf5 {[%clk
1:03:03]} 17. Bxc5 {[%clk 1:34:42]} 17... Rd8 {[%clk 1:03:01]} 18. Qc2 {[%clk
1:29:16]} 18... b6 {[%clk 0:54:11]} 19. Bf2 {[%clk 1:29:05]} 19... Ba6 {[%clk
0:53:09]} 20. Rfd1 {[%clk 1:24:17]} 20... Rac8 {[%clk 0:49:12]} 21. Bf1 {[%clk
1:09:49]} 21... Bb7 {[%clk 0:28:43]} 22. Qe2 {[%clk 1:00:19]} 22... Nd6 {[%clk
0:18:35]} 23. Nxd6 {[%clk 0:59:04]} 23... Qxd6 {[%clk 0:18:35]} 24. d4 {[%clk
0:59:21]} 24... Qd5 {[%clk 0:17:09]} 25. Be3 {[%clk 0:53:30]} 25... Qh1+ {[%clk
0:17:27]} 26. Kf2 {[%clk 0:53:53]} 26... Qxh2+ {[%clk 0:17:51]} 27. Ke1 {[%clk
0:53:53]} 27... Bxg3+ {[%clk 0:17:19]} 28. Bf2 {[%clk 0:54:09]} 28... Bxf2+
{[%clk 0:16:05]} 29. Qxf2 {[%clk 0:54:34]} 29... Qxf2+ {[%clk 0:15:58]} 30. Kxf2
{[%clk 0:54:52]} 30... Rd5 {[%clk 0:15:38]} 31. Be2 {[%clk 0:48:38]} 31... Rf5+
{[%clk 0:15:19]} 32. Ke3 {[%clk 0:41:26]} 32... h5 {[%clk 0:15:31]} 33. Rg1
{[%clk 0:41:11]} 33... Kg7 {[%clk 0:15:08]} 34. Bd3 {[%clk 0:41:12]} 34... Rf3+
{[%clk 0:15:27]} 35. Ke2 {[%clk 0:40:56]} 35... Rh3 {[%clk 0:15:20]} 36. Raf1
{[%clk 0:31:39]} 36... Rxd3 {[%clk 0:14:59]} 37. Kxd3 {[%clk 0:32:03]} 37...
Ba6+ {[%clk 0:15:25]} 38. Kd2 {[%clk 0:32:29]} 38... Bxf1 {[%clk 0:15:50]} 39.
Rxf1 {[%clk 0:32:55]} 39... Rd8 {[%clk 0:16:00]} 40. Kd3 {[%clk 0:30:40]} 40...
Rd5 {[%clk 0:16:01]} 41. c4 {[%clk 0:28:58]} 41... Rg5 {[%clk 0:15:41]} 42. Kc3
{[%clk 0:25:47]} 42... Rg3+ {[%clk 0:15:03]} 43. Kb4 {[%clk 0:26:05]} 43... Rd3
{[%clk 0:15:01]} 44. Rf4 {[%clk 0:25:25]} 44... g5 {[%clk 0:15:25]} 45. Re4
{[%clk 0:25:27]} 45... h4 {[%clk 0:13:23]} 46. c5 {[%clk 0:25:44]} 46... h3
{[%clk 0:12:12]} 47. Kc4 {[%clk 0:16:52]} 47... Rd1 {[%clk 0:10:44]} 48. Re2
{[%clk 0:17:06]} 48... bxc5 {[%clk 0:09:27]} 49. dxc5 {[%clk 0:17:23]} 49... g4
{[%clk 0:09:18]} 50. Rh2 {[%clk 0:17:00]} 50... Kf8 {[%clk 0:08:18]} 51. Kb5
{[%clk 0:17:22]} 51... g3 {[%clk 0:07:26]} 52. Rxh3 {[%clk 0:17:34]} 52... g2
{[%clk 0:07:52]} 53. Rg3 {[%clk 0:17:27]} 53... g1=Q {[%clk 0:07:51]} 54. Rxg1
{[%clk 0:17:48]} 54... Rxg1 {[%clk 0:08:08]} 55. Ka6 {[%clk 0:17:34]} 55... f5
{[%clk 0:07:56]} 56. b4 {[%clk 0:17:52]} 56... Rg7 {[%clk 0:07:13]} 57. b5
{[%clk 0:18:17]} 57... f4 {[%clk 0:07:20]} 58. a4 {[%clk 0:18:42]} 58... f3
{[%clk 0:07:37]} 59. b6 {[%clk 0:18:41]} 59... f2 {[%clk 0:06:41]} 60. b7 {[%clk
0:18:53]} 60... f1=Q+ {[%clk 0:07:05]} 61. Kxa7 {[%clk 0:18:23]} 61... Qf3
{[%clk 0:07:21]} 62. c6 {[%clk 0:18:03]} 62... Qxc6 {[%clk 0:07:44]} 63. a5
{[%clk 0:16:21]} 63... Qxb7# {[%clk 0:08:09]} 0-1

[Variant "Standard"]
[Site "Europe Echecs"]

[Event "Championnat du monde jeunes U10F"]
[Date "2024.11.26"]
[White "Wang, Mi Ya Mia"]
[Black "Li, Wan Qin"]
[WhiteElo "1552"]
[BlackElo "1628"]
[Round "11.21"]
[Result "0-1"]
[TimeControl "5400+30"]

1. e4 {[%clk 1:30:58]} 1... e6 {[%clk 1:30:51]} 2. d4 {[%clk 1:30:57]} 2... d5
{[%clk 1:31:09]} 3. e5 {[%clk 1:31:15]} 3... c5 {[%clk 1:31:23]} 4. c3 {[%clk
1:31:33]} 4... Nc6 {[%clk 1:31:41]} 5. Nf3 {[%clk 1:31:38]} 5... cxd4 {[%clk
1:31:20]} 6. cxd4 {[%clk 1:31:45]} 6... Nge7 {[%clk 1:30:47]} 7. Bd3 {[%clk
1:31:48]} 7... Nf5 {[%clk 1:26:33]} 8. Bxf5 {[%clk 1:31:56]} 8... exf5 {[%clk
1:26:54]} 9. Nc3 {[%clk 1:31:31]} 9... Bb4 {[%clk 1:25:54]} 10. a3 {[%clk
1:31:15]} 10... Bxc3+ {[%clk 1:26:05]} 11. bxc3 {[%clk 1:31:24]} 11... h6 {[%clk
1:25:14]} 12. h4 {[%clk 1:30:26]} 12... Be6 {[%clk 1:24:50]} 13. Bd2 {[%clk
1:27:08]} 13... Qd7 {[%clk 1:20:37]} 14. Rb1 {[%clk 1:24:56]} 14... Na5 {[%clk
1:15:36]} 15. a4 {[%clk 1:19:41]} 15... Rc8 {[%clk 1:08:57]} 16. Rb5 {[%clk
1:17:26]} 16... Nc4 {[%clk 1:07:26]} 17. Qb3 {[%clk 1:16:39]} 17... b6 {[%clk
1:07:25]} 18. O-O {[%clk 1:15:27]} 18... Qe7 {[%clk 1:05:49]} 19. Bc1 {[%clk
1:12:18]} 19... a6 {[%clk 1:04:13]} 20. Rb4 {[%clk 1:11:34]} 20... O-O {[%clk
1:02:07]} 21. g3 {[%clk 1:06:39]} 21... a5 {[%clk 1:01:12]} 22. Rb5 {[%clk
1:06:00]} 22... Bd7 {[%clk 1:00:39]} 23. Rxd5 {[%clk 0:59:04]} 23... Bc6 {[%clk
0:59:01]} 24. Qxc4 {[%clk 0:57:56]} 24... Qe6 {[%clk 0:59:22]} 25. Rc5 {[%clk
0:43:25]} 25... bxc5 {[%clk 0:59:44]} 26. Qd3 {[%clk 0:43:36]} 26... Be4 {[%clk
0:58:39]} 27. Qe3 {[%clk 0:43:32]} 27... Qd5 {[%clk 0:58:03]} 28. Nd2 {[%clk
0:42:17]} 28... cxd4 {[%clk 0:58:05]} 29. cxd4 {[%clk 0:42:20]} 29... Bc2 {[%clk
0:57:25]} 30. Ba3 {[%clk 0:40:59]} 30... Rfe8 {[%clk 0:57:10]} 31. Bc5 {[%clk
0:37:53]} 31... Red8 {[%clk 0:57:02]} 32. Bb6 {[%clk 0:36:07]} 32... Rd7 {[%clk
0:57:17]} 33. Rc1 {[%clk 0:35:29]} 33... Rb7 {[%clk 0:54:18]} 34. Bc5 {[%clk
0:34:21]} 34... Bxa4 {[%clk 0:54:34]} 35. Nc4 {[%clk 0:34:13]} 35... Rb3 {[%clk
0:52:59]} 36. Qd2 {[%clk 0:33:24]} 36... Bc6 {[%clk 0:52:15]} 37. f3 {[%clk
0:27:12]} 37... Rxf3 {[%clk 0:50:38]} 38. Kh2 {[%clk 0:27:08]} 38... Rc3 {[%clk
0:41:01]} 39. Nb6 {[%clk 0:24:48]} 39... Qe4 {[%clk 0:40:03]} 40. Rg1 {[%clk
0:23:35]} 40... Rc2 {[%clk 0:40:26]} 41. Qxc2 {[%clk 0:23:12]} 41... Qxc2+
{[%clk 0:40:50]} 42. Kh3 {[%clk 0:23:30]} 42... Bf3 {[%clk 0:40:44]} 43. g4
{[%clk 0:23:30]} 43... Qf2 {[%clk 0:39:31]} 44. Nxc8 {[%clk 0:22:28]} 44... Qxg1
{[%clk 0:39:50]} 45. Ne7+ {[%clk 0:22:35]} 45... Kh7 {[%clk 0:40:17]} 46. h5
{[%clk 0:20:59]} 46... Qxg4+ {[%clk 0:40:14]} 47. Kh2 {[%clk 0:21:09]} 47...
Qg2# {[%clk 0:40:37]} 0-1

[Variant "Standard"]
[Site "Europe Echecs"]

[Event "Championnat du monde jeunes U10F"]
[Date "2024.11.26"]
[White "Lisboa, Maria Eduarda Mazzaroppi"]
[Black "Trzcinska, Weronika"]
[WhiteElo "1490"]
[BlackElo "1653"]
[Round "11.22"]
[Result "1-0"]
[TimeControl "5400+30"]

1. e4 {[%clk 1:30:57]} 1... e5 {[%clk 1:30:51]} 2. Nf3 {[%clk 1:31:20]} 2... Nc6
{[%clk 1:31:09]} 3. Bb5 {[%clk 1:31:28]} 3... Bc5 {[%clk 1:30:53]} 4. d3 {[%clk
1:31:37]} 4... Nge7 {[%clk 1:27:54]} 5. O-O {[%clk 1:31:38]} 5... O-O {[%clk
1:28:01]} 6. c3 {[%clk 1:31:46]} 6... a6 {[%clk 1:26:57]} 7. Ba4 {[%clk
1:32:03]} 7... d6 {[%clk 1:26:52]} 8. Nbd2 {[%clk 1:30:13]} 8... Bb6 {[%clk
1:24:32]} 9. Re1 {[%clk 1:28:15]} 9... Ng6 {[%clk 1:23:32]} 10. Nf1 {[%clk
1:27:25]} 10... h6 {[%clk 1:21:08]} 11. Ng3 {[%clk 1:24:39]} 11... Qe7 {[%clk
1:18:31]} 12. h3 {[%clk 1:17:40]} 12... Nh4 {[%clk 1:15:36]} 13. Be3 {[%clk
1:10:05]} 13... Qf6 {[%clk 1:00:46]} 14. Nxh4 {[%clk 0:56:05]} 14... Bxe3 {[%clk
0:52:59]} 15. Rxe3 {[%clk 0:56:28]} 15... Qxh4 {[%clk 0:53:17]} 16. Bxc6 {[%clk
0:40:22]} 16... bxc6 {[%clk 0:53:29]} 17. d4 {[%clk 0:40:15]} 17... Qe7 {[%clk
0:52:31]} 18. Qd2 {[%clk 0:32:59]} 18... exd4 {[%clk 0:44:27]} 19. cxd4 {[%clk
0:32:01]} 19... Rb8 {[%clk 0:43:53]} 20. b3 {[%clk 0:32:09]} 20... Rb5 {[%clk
0:40:56]} 21. Rc1 {[%clk 0:29:32]} 21... Rb6 {[%clk 0:38:13]} 22. Qc2 {[%clk
0:29:24]} 22... Qf6 {[%clk 0:30:20]} 23. e5 {[%clk 0:23:00]} 23... Qg6 {[%clk
0:28:57]} 24. Qxg6 {[%clk 0:23:16]} 24... fxg6 {[%clk 0:25:50]} 25. Rec3 {[%clk
0:20:46]} 25... Bd7 {[%clk 0:19:26]} 26. exd6 {[%clk 0:21:09]} 26... cxd6 {[%clk
0:19:40]} 27. Ne4 {[%clk 0:20:37]} 27... Rf4 {[%clk 0:19:07]} 28. f3 {[%clk
0:20:34]} 28... d5 {[%clk 0:17:56]} 29. Nc5 {[%clk 0:20:38]} 29... Be8 {[%clk
0:17:29]} 30. Re1 {[%clk 0:20:01]} 30... Bf7 {[%clk 0:16:12]} 31. Na4 {[%clk
0:20:16]} 31... Rb4 {[%clk 0:15:45]} 32. Rxc6 {[%clk 0:20:27]} 32... Rbxd4
{[%clk 0:14:19]} 33. Rxa6 {[%clk 0:19:23]} 33... Rd2 {[%clk 0:14:00]} 34. Ra8+
{[%clk 0:18:48]} 34... Kh7 {[%clk 0:14:15]} 35. Nc5 {[%clk 0:08:54]} 35... g5
{[%clk 0:12:47]} 36. Nd7 {[%clk 0:08:50]} 36... h5 {[%clk 0:11:46]} 37. Rc1
{[%clk 0:07:23]} 37... g4 {[%clk 0:11:00]} 38. Rc6 {[%clk 0:06:13]} 38... g6
{[%clk 0:09:46]} 39. hxg4 {[%clk 0:05:06]} 39... hxg4 {[%clk 0:09:58]} 40. Nf6+
{[%clk 0:05:20]} 40... Kg7 {[%clk 0:09:48]} 41. Nxg4 {[%clk 0:05:27]} 41... Rd1+
{[%clk 0:08:58]} 42. Kh2 {[%clk 0:04:47]} 42... Rf5 {[%clk 0:08:48]} 43. Ra7
{[%clk 0:04:15]} 43... d4 {[%clk 0:06:28]} 44. Rd6 {[%clk 0:01:42]} 44... d3
{[%clk 0:04:19]} 45. Rad7 {[%clk 0:01:23]} 45... Ra5 {[%clk 0:03:54]} 46. Rxd3
{[%clk 0:01:19]} 46... Rxd3 {[%clk 0:03:46]} 47. Rxd3 {[%clk 0:01:42]} 47...
Rxa2 {[%clk 0:03:42]} 48. Ne5 {[%clk 0:01:52]} 48... Be6 {[%clk 0:03:22]} 49.
Nc6 {[%clk 0:01:37]} 49... Ra6 {[%clk 0:02:03]} 50. Nd4 {[%clk 0:01:16]} 50...
Bf7 {[%clk 0:01:53]} 51. Rc3 {[%clk 0:00:56]} 51... Rd6 {[%clk 0:01:41]} 52. Rd3
{[%clk 0:01:08]} 52... Kf6 {[%clk 0:01:40]} 53. f4 {[%clk 1:30:30]} 1-0

[Variant "Standard"]
[Site "Europe Echecs"]

[Event "Championnat du monde jeunes U10F"]
[Date "2024.11.26"]
[White "Rzadkowska, Lila"]
[Black "Xin, Lisa J."]
[WhiteElo "1765"]
[BlackElo "1602"]
[Round "11.23"]
[Result "1-0"]
[TimeControl "5400+30"]

1. d4 {[%clk 1:30:54]} 1... d5 {[%clk 1:30:53]} 2. c4 {[%clk 1:31:18]} 2... c6
{[%clk 1:31:06]} 3. Nf3 {[%clk 1:31:40]} 3... Nf6 {[%clk 1:31:30]} 4. e3 {[%clk
1:32:03]} 4... e6 {[%clk 1:31:47]} 5. b3 {[%clk 1:32:19]} 5... Nbd7 {[%clk
1:32:07]} 6. Bd3 {[%clk 1:32:39]} 6... b6 {[%clk 1:31:55]} 7. O-O {[%clk
1:32:43]} 7... Bb7 {[%clk 1:32:09]} 8. Bb2 {[%clk 1:32:55]} 8... Bd6 {[%clk
1:32:10]} 9. Nbd2 {[%clk 1:32:39]} 9... O-O {[%clk 1:31:53]} 10. Ne5 {[%clk
1:32:52]} 10... Qe7 {[%clk 1:30:44]} 11. f4 {[%clk 1:31:09]} 11... Rac8 {[%clk
1:29:21]} 12. Rc1 {[%clk 1:28:53]} 12... c5 {[%clk 1:22:26]} 13. g4 {[%clk
1:27:59]} 13... dxc4 {[%clk 1:15:27]} 14. bxc4 {[%clk 1:28:15]} 14... Rfd8
{[%clk 1:11:10]} 15. g5 {[%clk 1:25:32]} 15... Ne8 {[%clk 1:11:15]} 16. Qc2
{[%clk 1:14:40]} 16... g6 {[%clk 1:09:54]} 17. Ng4 {[%clk 1:13:32]} 17... cxd4
{[%clk 1:01:38]} 18. Nh6+ {[%clk 1:13:05]} 18... Kf8 {[%clk 1:01:56]} 19. exd4
{[%clk 1:13:03]} 19... Bxf4 {[%clk 1:02:03]} 20. Rxf4 {[%clk 1:05:17]} 20...
Qxg5+ {[%clk 1:02:18]} 21. Rg4 {[%clk 1:05:33]} 21... Qxh6 {[%clk 1:01:51]} 22.
Rf1 {[%clk 1:04:28]} 22... Nef6 {[%clk 0:58:19]} 23. Rg3 {[%clk 1:01:14]} 23...
Kg8 {[%clk 0:51:50]} 24. Ne4 {[%clk 0:58:41]} 24... Nxe4 {[%clk 0:50:45]} 25.
Bxe4 {[%clk 0:58:37]} 25... Bxe4 {[%clk 0:50:39]} 26. Qxe4 {[%clk 0:59:17]}
26... Rxc4 {[%clk 0:50:07]} 27. Qf3 {[%clk 0:59:07]} 27... Rf8 {[%clk 0:46:30]}
28. d5 {[%clk 0:57:17]} 28... Rc2 {[%clk 0:45:43]} 29. Rg2 {[%clk 0:52:24]}
29... Rxg2+ {[%clk 0:44:19]} 30. Qxg2 {[%clk 0:52:44]} 30... Qe3+ {[%clk
0:42:22]} 31. Kh1 {[%clk 0:52:54]} 31... Nc5 {[%clk 0:40:08]} 32. dxe6 {[%clk
0:49:41]} 32... Qxe6 {[%clk 0:39:21]} 33. Qd2 {[%clk 0:47:17]} 33... Qe4+ {[%clk
0:36:07]} 34. Kg1 {[%clk 0:47:23]} 34... Nd3 {[%clk 0:29:26]} 35. Bf6 {[%clk
0:44:23]} 35... Nc5 {[%clk 0:25:58]} 36. Bb2 {[%clk 0:40:23]} 36... Qd3 {[%clk
0:24:52]} 37. Qh6 {[%clk 0:39:31]} 37... Ne6 {[%clk 0:25:13]} 38. Re1 {[%clk
0:36:34]} 38... Qc2 {[%clk 0:21:04]} 39. Bf6 {[%clk 0:31:51]} 39... Qc5+ {[%clk
0:21:15]} 40. Re3 {[%clk 0:29:46]} 40... Rc8 {[%clk 0:17:47]} 41. Kg2 {[%clk
0:28:33]} 41... Qf8 {[%clk 0:17:56]} 42. Qh4 {[%clk 0:27:02]} 42... Rc2+ {[%clk
0:17:53]} 43. Kf1 {[%clk 0:25:04]} 43... Rxa2 {[%clk 0:17:34]} 44. Qc4 {[%clk
0:22:47]} 44... Qc5 {[%clk 0:11:48]} 45. Qxc5 {[%clk 0:20:36]} 45... bxc5 {[%clk
0:12:11]} 46. Rb3 {[%clk 0:20:30]} 46... Rxh2 {[%clk 0:04:41]} 47. Rb8+ {[%clk
0:20:49]} 47... Nf8 {[%clk 0:05:04]} 48. Be7 {[%clk 0:21:07]} 48... Kg7 {[%clk
0:04:51]} 49. Bxf8+ {[%clk 0:21:19]} 49... Kf6 {[%clk 0:05:13]} 50. Bxc5 {[%clk
0:20:50]} 50... a5 {[%clk 0:04:03]} 51. Rb6+ {[%clk 0:20:40]} 51... Kg7 {[%clk
0:03:21]} 52. Bd4+ {[%clk 0:20:26]} 52... Kf8 {[%clk 0:03:04]} 53. Bf6 {[%clk
0:20:24]} 53... Ke8 {[%clk 0:03:19]} 54. Rd6 {[%clk 0:20:38]} 54... Rh1+ {[%clk
0:02:10]} 55. Kg2 {[%clk 0:20:53]} 55... Rd1 {[%clk 0:02:32]} 56. Rxd1 {[%clk
0:21:16]} 56... a4 {[%clk 0:02:58]} 57. Rd8# {[%clk 0:21:41]} 1-0

[Variant "Standard"]
[Site "Europe Echecs"]

[Event "Championnat du monde jeunes U10F"]
[Date "2024.11.26"]
[White "Nguyen, Lam Vy Le"]
[Black "Macchia-Shahar, Yali"]
[WhiteElo "1728"]
[BlackElo "1564"]
[Round "11.24"]
[Result "1-0"]
[TimeControl "5400+30"]

1. e4 {[%clk 1:30:56]} 1... c5 {[%clk 1:30:51]} 2. Nc3 {[%clk 1:31:21]} 2... Nc6
{[%clk 1:31:04]} 3. g3 {[%clk 1:31:46]} 3... g6 {[%clk 1:31:12]} 4. Bg2 {[%clk
1:32:08]} 4... Bg7 {[%clk 1:31:26]} 5. d3 {[%clk 1:32:28]} 5... d6 {[%clk
1:31:25]} 6. Be3 {[%clk 1:32:35]} 6... Rb8 {[%clk 1:31:11]} 7. a4 {[%clk
1:32:57]} 7... a6 {[%clk 1:30:21]} 8. Nge2 {[%clk 1:32:30]} 8... Nd4 {[%clk
1:30:31]} 9. Rb1 {[%clk 1:28:26]} 9... b5 {[%clk 1:29:29]} 10. axb5 {[%clk
1:28:29]} 10... axb5 {[%clk 1:29:14]} 11. Bxd4 {[%clk 1:26:55]} 11... cxd4
{[%clk 1:29:00]} 12. Nd5 {[%clk 1:26:43]} 12... e6 {[%clk 1:28:47]} 13. Nb4
{[%clk 1:26:20]} 13... Qa5 {[%clk 1:27:26]} 14. c3 {[%clk 1:24:42]} 14... Ne7
{[%clk 1:23:23]} 15. Qb3 {[%clk 1:19:04]} 15... e5 {[%clk 1:20:04]} 16. O-O
{[%clk 1:16:12]} 16... Be6 {[%clk 1:18:22]} 17. Qc2 {[%clk 1:14:20]} 17... O-O
{[%clk 1:17:26]} 18. Ra1 {[%clk 1:11:51]} 18... Qd8 {[%clk 1:15:41]} 19. cxd4
{[%clk 1:09:54]} 19... Rc8 {[%clk 1:13:08]} 20. Qd2 {[%clk 1:07:18]} 20... exd4
{[%clk 1:11:26]} 21. f4 {[%clk 1:04:13]} 21... Qd7 {[%clk 1:07:36]} 22. Ra3
{[%clk 0:55:46]} 22... f5 {[%clk 1:04:12]} 23. Rfa1 {[%clk 0:53:10]} 23... Rc7
{[%clk 0:52:44]} 24. Nc2 {[%clk 0:49:18]} 24... fxe4 {[%clk 0:49:26]} 25. Bxe4
{[%clk 0:42:14]} 25... Bh3 {[%clk 0:48:02]} 26. Ncxd4 {[%clk 0:38:01]} 26... d5
{[%clk 0:40:43]} 27. Bg2 {[%clk 0:33:03]} 27... Bxg2 {[%clk 0:38:38]} 28. Kxg2
{[%clk 0:33:27]} 28... Nf5 {[%clk 0:37:56]} 29. Nxf5 {[%clk 0:31:19]} 29... Rxf5
{[%clk 0:37:02]} 30. Ra8+ {[%clk 0:30:25]} 30... Bf8 {[%clk 0:35:29]} 31. Nd4
{[%clk 0:30:12]} 31... Rh5 {[%clk 0:34:32]} 32. Kg1 {[%clk 0:26:23]} 32... Kg7
{[%clk 0:32:44]} 33. Rd8 {[%clk 0:25:34]} 33... Qh3 {[%clk 0:31:21]} 34. Nf3
{[%clk 0:19:01]} 34... Qg4 {[%clk 0:27:15]} 35. Qf2 {[%clk 0:15:09]} 35... Bc5
{[%clk 0:25:31]} 36. d4 {[%clk 0:15:31]} 36... Be7 {[%clk 0:25:18]} 37. Re8
{[%clk 0:14:45]} 37... Bf6 {[%clk 0:21:21]} 38. Rae1 {[%clk 0:12:27]} 38... Qh3
{[%clk 0:19:40]} 39. Qg2 {[%clk 0:11:18]} 39... Qg4 {[%clk 0:18:21]} 40. Qe2
{[%clk 0:10:11]} 40... Rf7 {[%clk 0:14:09]} 41. Ne5 {[%clk 0:08:45]} 41... Qxe2
{[%clk 0:14:02]} 42. Rxe2 {[%clk 0:09:08]} 42... Bxe5 {[%clk 0:14:02]} 43. R8xe5
{[%clk 0:09:15]} 43... Rff5 {[%clk 0:13:39]} 44. Rxf5 {[%clk 0:09:35]} 44...
Rxf5 {[%clk 0:13:56]} 45. Re5 {[%clk 0:09:35]} 45... Kf6 {[%clk 0:13:38]} 46.
Re8 {[%clk 0:09:26]} 46... g5 {[%clk 0:13:21]} 47. fxg5+ {[%clk 0:09:11]} 47...
Rxg5 {[%clk 0:13:34]} 48. Kf2 {[%clk 0:09:06]} 48... Rh5 {[%clk 0:13:30]} 49.
Kg2 {[%clk 0:09:09]} 49... Rg5 {[%clk 0:13:42]} 50. h3 {[%clk 0:09:27]} 50... h5
{[%clk 0:13:52]} 51. Kf3 {[%clk 0:09:34]} 51... Rf5+ {[%clk 0:14:02]} 52. Ke3
{[%clk 0:09:42]} 52... Rg5 {[%clk 0:14:13]} 53. Rf8+ {[%clk 0:09:53]} 53... Ke7
{[%clk 0:14:17]} 54. Rf3 {[%clk 0:10:18]} 54... Kd6 {[%clk 0:14:22]} 55. Kd3
{[%clk 0:10:24]} 55... Kc6 {[%clk 0:14:32]} 56. b4 {[%clk 0:10:32]} 56... Kd6
{[%clk 0:14:38]} 57. Ke3 {[%clk 0:10:50]} 57... Rg6 {[%clk 0:14:32]} 58. Kf2
{[%clk 0:10:52]} 58... Kc6 {[%clk 0:14:34]} 59. Rf5 {[%clk 0:11:01]} 59... Rh6
{[%clk 0:14:36]} 60. Kf3 {[%clk 0:11:19]} 60... Kd6 {[%clk 0:14:54]} 61. Kf4
{[%clk 0:11:15]} 61... Ke6 {[%clk 0:14:43]} 62. Rf8 {[%clk 0:11:26]} 62... Rf6+
{[%clk 0:14:23]} 63. Rxf6+ {[%clk 0:11:47]} 63... Kxf6 {[%clk 0:14:43]} 64. h4
{[%clk 0:12:14]} 64... Kf7 {[%clk 0:14:46]} 65. Ke5 {[%clk 0:12:23]} 65... Kg6
{[%clk 0:15:04]} 66. Kxd5 {[%clk 0:12:44]} 66... Kf5 {[%clk 0:15:16]} 67. Kc6
{[%clk 0:13:08]} 67... Ke6 {[%clk 0:15:07]} 68. d5+ {[%clk 0:13:34]} 68... Ke7
{[%clk 0:15:15]} 69. Kc7 {[%clk 0:14:00]} 1-0

[Variant "Standard"]
[Site "Europe Echecs"]

[Event "Championnat du monde jeunes U10F"]
[Date "2024.11.26"]
[White "Wang, Yi Xuan"]
[Black "Kravchuk, Daria"]
[WhiteElo "1668"]
[BlackElo "1569"]
[Round "11.25"]
[Result "1/2-1/2"]
[TimeControl "5400+30"]

1. d4 {[%clk 1:30:54]} 1... d5 {[%clk 1:30:53]} 2. c4 {[%clk 1:31:16]} 2... e6
{[%clk 1:30:51]} 3. Nc3 {[%clk 1:31:34]} 3... a6 {[%clk 1:30:57]} 4. a4 {[%clk
1:27:00]} 4... Nf6 {[%clk 1:28:10]} 5. Nf3 {[%clk 1:17:40]} 5... dxc4 {[%clk
1:19:52]} 6. e3 {[%clk 1:08:08]} 6... c5 {[%clk 1:13:53]} 7. Bxc4 {[%clk
1:01:26]} 7... Nc6 {[%clk 1:08:01]} 8. O-O {[%clk 0:57:46]} 8... cxd4 {[%clk
0:59:47]} 9. exd4 {[%clk 0:56:17]} 9... Bd6 {[%clk 0:52:56]} 10. d5 {[%clk
0:50:03]} 10... exd5 {[%clk 0:48:12]} 11. Nxd5 {[%clk 0:47:47]} 11... Nxd5
{[%clk 0:43:23]} 12. Bxd5 {[%clk 0:47:54]} 12... O-O {[%clk 0:42:26]} 13. Ng5
{[%clk 0:36:13]} 13... Qc7 {[%clk 0:34:12]} 14. h4 {[%clk 0:26:07]} 14... Bf5
{[%clk 0:25:53]} 15. g4 {[%clk 0:20:59]} 15... Bd7 {[%clk 0:17:04]} 16. Qd3
{[%clk 0:18:45]} 16... g6 {[%clk 0:16:13]} 17. Qc4 {[%clk 0:09:36]} 17... b5
{[%clk 0:09:51]} 18. Bxf7+ {[%clk 0:08:27]} 18... Kg7 {[%clk 0:08:57]} 19. Qd5
{[%clk 0:07:34]} 19... Ne7 {[%clk 0:07:36]} 20. Qb3 {[%clk 0:06:52]} 20... Bh2+
{[%clk 0:05:16]} 21. Kh1 {[%clk 0:06:27]} 21... Bc6+ {[%clk 0:04:05]} 22. f3
{[%clk 0:06:28]} 22... Qg3 {[%clk 0:03:02]} 23. Qc3+ {[%clk 0:06:34]} 23... Qe5
{[%clk 0:03:09]} 24. Qxe5+ {[%clk 0:06:31]} 24... Bxe5 {[%clk 0:03:31]} 25. Bb3
{[%clk 0:06:40]} 25... Kh8 {[%clk 0:03:03]} 26. Nf7+ {[%clk 0:06:12]} 26... Rxf7
{[%clk 0:03:22]} 27. Bxf7 {[%clk 0:06:36]} 27... Rf8 {[%clk 0:03:47]} 28. Be6
{[%clk 0:05:39]} 28... Rf6 {[%clk 0:01:48]} 1/2-1/2

[Variant "Standard"]
[Site "Europe Echecs"]